Cogmind - Beta 13 @@@ ROGUE MODE // 2024.07.05 @ 23:31:37 Player: Attma Result: Destroyed by Y9-6FJ(R) with Subdweller Laser Performance ------------- Evolutions (0) 0 Regions Visited (3) 600 Robots Destroyed (28) 140 Value Destroyed (600) 600 Prototype IDs (0) 0 Alien Tech Used (0) 0 Bonus (0) 0 TOTAL SCORE: 1340 Bonus ------- None Cogmind --------- Core Integrity 0/250 Matter 239/300 Energy 72/100 System Corruption 0% Temperature Cool (6) Movement Core (750) Ox14 Location -10/Subcaves Parts ------- > --- POWER (1) -------- (None) > --- PROPULSION (2) --- (None) > --- UTILITY (2) ------ High-capacity Storage Unit Actuator Array > --- WEAPON (2) ------- (None) > --- INVENTORY (20) --- Improved Ion Engine Improved Ion Engine Light Nuclear Core Large Storage Unit Large Matter Pod (150) Improved Terrain Scan Processor Reaction Control System Weapon Shielding Hardened Medium Armor Plating Improved Light Armor Plating Scrap Shield Scrap Shield High-powered Tractor Beam Flak Cannon Grenade Launcher Grenade Launcher Hammer Peak State ------------ > --- POWER ------------ Ion Engine > --- PROPULSION ------- Aluminum Leg Aluminum Leg > --- UTILITY ---------- High-capacity Storage Unit Terrain Scan Processor > --- WEAPON ----------- Ion Cannon Flak Cannon > --- INVENTORY -------- Improved Ion Engine Improved Ion Engine Light Nuclear Core Large Storage Unit Large Matter Pod Improved Terrain Scan Processor Actuator Array Reaction Control System Weapon Shielding Hardened Medium Armor Plating Improved Light Armor Plating Scrap Shield Scrap Shield High-powered Tractor Beam Grenade Launcher Grenade Launcher Hammer Maul [Rating: 16] Favorites ----------- Power Ion Engine Engine Ion Engine Propulsion Wheel Leg Aluminum Leg Wheel Wheel Utility High-capacity Storage Unit Device Improved Terrain Scanner Storage High-capacity Storage Unit Processor Terrain Scan Processor Weapon Light Assault Rifle Energy Gun Particle Gun Energy Cannon Ion Cannon Ballistic Gun Light Assault Rifle Ballistic Cannon Flak Cannon Launcher Grenade Launcher Impact Weapon Maul Build | -11 -10 -10 -10 ------- Run | Yrd Mat Min Sub Slots Evolved . | . . . . Power . | . . . . Propulsion . | . . . . Utility . | . . . . Weapon . | . . . . Parts Attached 35 | 7 19 7 2 Power 3 | 1 2 . . Engine 3 | 1 2 . . Core . | . . . . Reactor . | . . . . Propulsion 9 | 2 3 4 . Treads . | . . . . Leg 3 | . . 3 . Wheel 6 | 2 3 1 . Hover . | . . . . Flight . | . . . . Utility 8 | 2 5 . 1 Device 2 | 1 . . 1 Storage 4 | 1 3 . . Processor 2 | . 2 . . Hackware . | . . . . Protection . | . . . . Artifact . | . . . . Weapon 15 | 2 9 3 1 Energy Gun 2 | . 1 1 . Energy Cannon 1 | . . 1 . Ballistic Gun 5 | 2 3 . . Ballistic Cannon 1 | . . 1 . Launcher 4 | . 4 . . Special Weapon . | . . . . Impact Weapon 2 | . 1 . 1 Slashing Weapon . | . . . . Piercing Weapon . | . . . . Special Melee Weapon . | . . . . Unidentified Prototypes . | . . . . Parts Lost 13 | . 6 1 6 Power 3 | . 2 . 1 Propulsion 5 | . 2 1 2 Utility 2 | . 1 . 1 Weapon 3 | . 1 . 2 Highest Loss Streak 6 | . 4 1 6 To Critical Strikes 1 | . . . 1 Average Slot Usage (%) 93 | . 89 97 96 Engine 13 | . 13 14 13 Leg 6 | . . 10 27 Wheel 17 | . 22 15 . Device 2 | . 4 . . Storage 14 | . 14 14 14 Processor 9 | . 4 14 13 Energy Gun 1 | . 1 2 . Energy Cannon 5 | . . 10 13 Ballistic Gun 10 | . 18 4 . Ballistic Cannon 5 | . . 9 13 Launcher 2 | . 4 . . Impact Weapon 1 | . 3 . . Naked Turns . | . . . . Heaviest Build 57 | 9 49 57 57 Greatest Support 20 | 20 20 20 20 Greatest Overweight (x) 5 | . 4 5 2 Average Overweight (x) 2 | . 2 2 2 Largest Inventory Capacity 20 | 5 20 20 20 Average Capacity 18 | 5 19 20 20 Most Carried 20 | 5 20 20 20 Average Carried 16 | 3 13 19 19 Final Capacity 20 | 5 20 20 20 Final Carried 20 | 5 16 20 19 Class Distribution -------------------- 51% | Mutant 48% | Scavenger-Mutant Dominant Class ---------------- Mutant | -10/Materials Scavenger-Mutant | -10/Mines Scavenger-Mutant | -10/Subcaves Resources | -11 -10 -10 -10 ----------- Run | Yrd Mat Min Sub Matter Collected 1282 | 398 565 240 79 Remotely . | . . . . Salvage Created 745 | 76 522 147 . Parts 63 | 9 54 . . Haulers Intercepted 1 | . 1 . . Recyclers Shooed 1 | . 1 . . Parts Field Recycled . | . . . . Retrieved Matter . | . . . . Parts Self-Destructed . | . . . . Prevented . | . . . . Kills | -11 -10 -10 -10 ------- Run | Yrd Mat Min Sub Combat Hostiles Destroyed 19 | 1 15 3 . Guns 6 | 1 5 . . Cannons 3 | . . 3 . AOE 10 | . 10 . . Classes Destroyed 10 | 3 6 1 . Worker 3 | 1 2 . . Builder 2 | . 2 . . Tunneler 1 | 1 . . . Hauler 1 | . 1 . . Recycler 2 | . 1 1 . Operator 1 | . 1 . . Watcher 2 | . 2 . . Swarmer 3 | . 3 . . Grunt 13 | 1 12 . . Assembled 3 | . . 3 . Best Kill Streak 8 | 2 8 1 . Combat Bots Only 4 | 1 4 1 . Max Kills in Single Turn 3 | 1 3 1 . Gunslinging . | . . . . Exploded 1 | . 1 . . Melee . | . . . . Uniques/NPCs Destroyed . | . . . . Combat | -11 -10 -10 -10 -------- Run | Yrd Mat Min Sub Hostile Shots Fired 87 | 3 44 7 33 Missed 20 | . 11 3 6 Damage Taken 1172 | 33 552 62 525 Core 254 | 22 130 . 102 Absorbed by Shields . | . . . . Core Remaining (%) 91 | 91 . . . Volleys Fired 106 | 7 71 26 2 Largest 2 | 2 2 2 2 Hottest 104 | 40 50 104 104 Shots Fired 196 | 14 127 52 3 Gun 121 | 14 105 2 . Cannon 53 | . . 50 3 Launcher 22 | . 22 . . Special . | . . . . Kinetic 146 | 14 105 26 1 Thermal 28 | . . 26 2 Explosive 22 | . 22 . . Electromagnetic . | . . . . Robot Hit Streak 10 | 2 8 4 10 Robot Miss Streak 4 | 2 4 3 1 Penetration Max . | . . . . Secondary Targets . | . . . . Shots Hit Robots 84 | 7 65 6 6 Core Hits 53 | 5 42 5 1 Critical Kills . | . . . . Critical Parts Destroyed . | . . . . Critical Strikes . | . . . . Melee Attacks 3 | . . . 3 Impact 3 | . . . 3 Slashing . | . . . . Piercing . | . . . . Sneak Attacks . | . . . . Combat Hostiles . | . . . . Follow-up Attacks . | . . . . Damage Inflicted 1919 | 80 1520 110 209 Guns 652 | 80 556 16 . Cannons 174 | . . 94 80 Explosions 948 | . 948 . . Melee 129 | . . . 129 Ramming 16 | . 16 . . Kinetic 696 | 80 556 26 34 Thermal 130 | . . 84 46 Explosive 948 | . 948 . . Electromagnetic . | . . . . Impact 129 | . . . 129 Slashing . | . . . . Piercing . | . . . . Highest Corruption . | . . . . Average Corruption . | . . . . Corruption Purged . | . . . . Corruption Blocked . | . . . . Overload Shots . | . . . . Overflow Damage 37 | . 21 7 9 Projectiles 7 | . . 7 . Explosions 21 | . 21 . . Melee 9 | . . . 9 Knockbacks 5 | . . . 5 Impact 1 | . . . 1 Kinetic 3 | . . . 3 Secondary 1 | . . . 1 Self-Inflicted Damage 208 | . 208 . . Shots 10 | . 10 . . Rammed 1 | . 1 . . Targets Rammed 1 | . 1 . . Kicked . | . . . . Crushed . | . . . . Highest Temperature 396 | 6 18 396 . Average Temperature 164 | 6 7 224 . Received Heat Transfer 292 | 18 153 40 81 Effects 5 | . . 5 . Shutdowns 2 | . . 2 . Matter Decay 1 | . . 1 . Short Circuit 1 | . . 1 . Damage (minor) 1 | . . 1 . Siege Activations . | . . . . Robots Corrupted . | . . . . Combat Hostiles . | . . . . Parts Fried . | . . . . Impact Corruptions 1 | . . . 1 Robots Melted . | . . . . Combat Hostiles . | . . . . Parts Melted . | . . . . Heat Transferred 222 | . . 148 74 Parts Sabotaged . | . . . . Parts Stolen . | . . . . Parts Stripped . | . . . . Power Chain Reactions . | . . . . Alert | -11 -10 -10 -10 ------- Run | Yrd Mat Min Sub Peak Influence 279 | 30 279 46 . Initial 41 | . 19 41 . Average 76 | 10 133 13 . Maximum Alert Level 1 | . 1 . . Low Security (%) 91 | 100 84 100 . Level 1 8 | . 15 . . Level 2 . | . . . . Level 3 . | . . . . Level 4 . | . . . . Level 5 . | . . . . High Security . | . . . . Max Security . | . . . . Squads Dispatched 5 | . 4 1 . Investigation 2 | . 1 1 . Extermination . | . . . . Reinforcement 3 | . 3 . . Assault . | . . . . Garrison . | . . . . Intercept . | . . . . Searches Triggered . | . . . . Construction Impeded . | . . . . Haulers Reinforced . | . . . . Active Scanning Responses . | . . . . Cargo Convoy Interrupts . | . . . . Stealth | -11 -10 -10 -10 --------- Run | Yrd Mat Min Sub Distress Signals 2 | . 2 . . Communications Jammed . | . . . . Distress Signals . | . . . . Times Spotted 42 | 1 28 3 10 Peak Tracking Total 9 | 1 5 2 9 Tactical Retreats 1 | . . 1 . Traps | -11 -10 -10 -10 ------- Run | Yrd Mat Min Sub Traps Triggered 3 | . 3 . . Indirectly . | . . . . Trap Hack Attempts . | . . . . Triggered . | . . . . Disarmed . | . . . . Reprogrammed . | . . . . Reused . | . . . . Traps Extracted . | . . . . Installed . | . . . . Triggered . | . . . . Machines | -11 -10 -10 -10 ---------- Run | Yrd Mat Min Sub Machines Disabled 2 | . 2 . . Max in Single Turn 1 | . 1 . . Machines Repaired . | . . . . Machines Dismantled . | . . . . Machines Sabotaged . | . . . . Overloaded Fab Kills . | . . . . Hacking | -11 -10 -10 -10 --------- Run | Yrd Mat Min Sub Machines Accessed 6 | . 5 1 . Terminals 3 | . 3 . . Fabricators . | . . . . Repair Stations . | . . . . Recycling Units 2 | . 2 . . Scanalyzers . | . . . . Garrison Access . | . . . . Total Hacks 15 | . 14 1 . Successful 8 | . 7 1 . Failed 7 | . 7 . . Catastrophic 3 | . 3 . . Database Lockouts . | . . . . Manual . | . . . . Terminals 10 | . 10 . . Fabricators . | . . . . Repair Stations . | . . . . Recycling Units 4 | . 4 . . Scanalyzers . | . . . . Garrison Access . | . . . . Terminal Hacks 6 | . 5 1 . Record 2 | . 2 . . Open Door 1 | . . 1 . Recycling Unit Index 1 | . 1 . . Alert Level 2 | . 2 . . Fabricator Hacks . | . . . . Repair Station Hacks . | . . . . Recycling Unit Hacks 2 | . 2 . . Retrieve Components 2 | . 2 . . Scanalyzer . | . . . . Garrison Access Hacks . | . . . . Unauthorized Hacks . | . . . . Terminals . | . . . . Fabricators . | . . . . Repair Stations . | . . . . Recycling Units . | . . . . Scanalyzers . | . . . . Garrison Access . | . . . . Data Cores Recovered . | . . . . Used . | . . . . Hacking Detections 4 | . 4 . . Full Trace Events 1 | . 1 . . Feedback Events . | . . . . Feedback Blocked . | . . . . Robot Schematics Acquired . | . . . . Robots Built . | . . . . Authchips . | . . . . Time . | . . . . Total Robot Build Rating . | . . . . Part Schematics Acquired . | . . . . Parts Built . | . . . . Authchips . | . . . . Time . | . . . . Total Part Build Rating . | . . . . Parts Repaired . | . . . . Time . | . . . . Parts Recycled . | . . . . Recycled Matter . | . . . . Retrieved Matter . | . . . . Retrieved Components 10 | . 10 . . Parts Scanalyzed . | . . . . Part Schematics Acquired . | . . . . Parts Damaged . | . . . . Bothacking | -11 -10 -10 -10 ------------ Run | Yrd Mat Min Sub Used RIF Installer . | . . . . Robots Hacked . | . . . . Non-combat . | . . . . Combat . | . . . . Robot Hacks Applied . | . . . . Relay Couplers Released . | . . . . Fabnet Peak Effective % . | . . . . Robots Rewired . | . . . . Allies Hacked . | . . . . Hacks Repelled . | . . . . Allies | -11 -10 -10 -10 -------- Run | Yrd Mat Min Sub Total Allies . | . . . . Largest Group . | . . . . Highest-Rated Group . | . . . . Highest-Rated Ally . | . . . . Total Orders . | . . . . Ally Attacks . | . . . . Total Damage . | . . . . Kills . | . . . . Allies Corrupted . | . . . . Allies Melted . | . . . . Intel | -11 -10 -10 -10 ------- Run | Yrd Mat Min Sub Robot Analysis Total . | . . . . Derelict Logs Recovered 1 | . . 1 . Drone Launches . | . . . . Drone Recoveries . | . . . . Exploration | -11 -10 -10 -10 ------------- Run | Yrd Mat Min Sub Turns Passed 3420 | 136 1652 1333 299 Spaces Moved 2200 | 137 1218 738 107 Core 54 | 54 . . . Treads . | . . . . Legs 305 | . . 198 107 Wheels 1841 | 83 1218 540 . Hover . | . . . . Flight . | . . . . Fastest Speed 50 | 50 80 110 260 Average Speed 137 | 68 116 166 260 Slowest Speed 470 | 80 140 470 260 Overloaded Moves . | . . . . Propulsion Burnouts . | . . . . Robots Hopped . | . . . . Cave-ins Triggered . | . . . . Exploration Rate (%) 49 | 9 92 86 9 Regions Visited 3 Branch Regions 2 Pre-discovered Areas 1 | . . 1 . Known Exits Taken . | . . . . Unknown Exits Taken 3 | 1 1 1 . Scrap Searched . | . . . . Spaces Dug 46 | . 46 . . Terrain Destroyed 132 | . 132 . . Melee . | . . . . Projectile . | . . . . AOE 132 | . 132 . . Terrain Rammed . | . . . . Walls Destroyed . | . . . . Machines Disabled . | . . . . Actions | -11 -10 -10 -10 --------- Run | Yrd Mat Min Sub Total 2409 | 167 1334 788 120 Wait . | . . . . Move 2197 | 136 1217 737 107 Hop . | . . . . Pick Up 50 | 14 23 11 2 Fast Attach 3 | 1 1 1 . Attach 16 | 6 9 . 1 Detach . | . . . . Swap 16 | . 9 6 1 Drop 17 | 3 3 7 4 Fire 106 | 7 71 26 2 Melee 3 | . . . 3 Ram 1 | . 1 . . Kick . | . . . . Crush . | . . . . Escape Stasis . | . . . . Rewire . | . . . . Trap . | . . . . Miscellaneous . | . . . . Route ------- -11/Scrapyard -10/Materials (discovered 4 exits: [*Mat x3] / *Min) -10/Mines (discovered 2 exits: [*Mat] / [*Sub]) -10/Subcaves History --------- Turn | Location | Event 2 | -11/Scrapyard | Met Revision 17 85 | -11/Scrapyard | Discovered new exit (range 8) 137 | -11/Scrapyard | Entered Materials 310 | -10/Materials | Build established: Mutant 734 | -10/Materials | Lost 4 parts (1p1n1u1w) 789 | -10/Materials | Discovered new exit (range 10) 824 | -10/Materials | Core integrity fell below 50% 1179 | -10/Materials | Discovered new exit (range 7) 1369 | -10/Materials | Discovered new exit (range 15) 1479 | -10/Materials | Discovered new exit (range 16) 1789 | -10/Materials | Entered Mines 1795 | -10/Mines | Discovered new exit (range 15) 1837 | -10/Mines | YI-UF0 nonchalantly dropped a Grenade Launcher on the ground 1849 | -10/Mines | Learned Materials machine intel 1894 | -10/Mines | Met a Derelict shopkeep closing up shop 2007 | -10/Mines | Build established: Scavenger-Mutant 2027 | -10/Mines | Learned location of Storage (-8) 2174 | -10/Mines | Excavation squad dispatched 2174 | -10/Mines | A large section of the Mines collapsed 3067 | -10/Mines | Discovered new exit (range 14) 3122 | -10/Mines | Entered Subcaves 3404 | -10/Subcaves | Ambushed by swarm of Subdwellers 3405 | -10/Subcaves | Ambushed by Subdwellers from Twisted Machinery 3409 | -10/Subcaves | Ambushed by Subdwellers from Twisted Machinery 3418 | -10/Subcaves | Core integrity fell below 20% 3421 | -10/Subcaves | Destroyed by Y9-6FJ(R) with Subdweller Laser Last Messages --------------- Ion Cannon destroyed. 7X-XY4(R) angrily emerges from the Twisted Machinery. 7X-XY4(R) suffers critical hit (Destroy). Subatomizers dissect the Sub. Power Source. HV Slug penetrates 4U-J40(R). 4U-J40(R) suffers critical hit (Destroy). HV Slug penetrates Wall. Terrain Scan Processor destroyed. 9U-Z7D(h) destroyed. Critical hit (Destroy). Aluminum Leg destroyed. Destroyed Sub. Optics. 1R-MPF(R) system corrupted by crushing effect. 1R-MPF(R) knocked back. D8-HCI(R) emerges from the Twisted Machinery. Aluminum Leg destroyed. Broken Ion Engine destroyed. Maul destroyed. 8C-Y4L(R) destroyed. Map ----- +----------------------------------------------------+ | ????????????????# = #??????????? | | ????????????????## ##??????????? | | ?????????????????##% ##???????????? | | ??????????????????## ##????????????? | | ???????????????????## % ##?????????????? | | ????????????????????# #??????????????? | | ????????????????????## #??????????????? | | ????????????????????## #??????????????? | | ????????????????????# #??????????????? | | ????????????????????## ##??????????????? | | ???????????????????### #??????????????? | | ?????????????????### # ##??????????????? | | ?????????????????# #???????????????? | | ?????????????????# #???????????????? | | ?????????????????# ##???????????????? | | ????????????????## ###????????????????? | | ????????????????# #??????????????????? | | ????????????????# ##??????????????????? | | ????????????????# ##???????????????????? | | ????????????????# ##???????????????????? | | ???????????????## ##??????????????????? | | ??????????????##% ##?????????????????? | | ????????????###=[R ####??????????????? | | ????????????? ;!%*R ;# #??????? | | ??????????????#RRRR #??????? | | ??????????????# @ R%!% #??????? | | ??????????????####%* #??????? | | ?????????????????# #??????? | | ?????????????????# ## ### ???????? | | ????????????????? #?###???? ???????? | | ????????????????? ##????????????????? | | ????????????????? ##?????????????????? | | ????????????????# #??????????????????? | | ????????????????# #??????????????????? | | ????????????????# ??????????????????? | | ???????????????? ??????????????????? | | ???????????????? ## ?????????????????? | | ???????????????? #?? ?????????????????? | | ????????????????? ??? ?????????????????? | | ????????????????? ??????????????????????? | | ????????????????????????????????????????? | | ????????????????????????????????????????? | | ????????????????????????????????????????? | | ????????????????????????????????????????? | | ????????????????????????????????????????? | | ????????????????????????????????????????? | | ????????????????????????????????????????? | | ????????????????????????????????????????? | | ????????????????????????????????????????? | | ????????????????????????????????????????? | +----------------------------------------------------+ Best States ------------- Heat Dissipation 25 Energy Generation 10 Energy Capacity 250 Matter Stores 400 Matter Capacity 400 Sight Range 16 Terrain Scan Range 16 Terrain Scan Density 85 Evasion (%) 50 Targeting Accuracy 5 Item Schematics ----------------- None Robot Schematics ------------------ None Fabricated ------------ Nothing Alien Tech Used ----------------- None Achievements -------------- None Challenges ------------ None Game ------ Seed TerrainArcSabre Manual? 0 Play Time 00:24:44 Cumulative 9.7 hours Start 2024.07.05 @ 23:06:28 End 2024.07.05 @ 23:31:37 Sessions 1 Manual Loads 0 Difficulty Rogue Special Mode None Game No. 13 Rogue 13 Adventurer 0 Explorer 0 Win Type - Total 0 Types 0/0/0/0/0/0/0/0/0 Lore% 10 Gallery% 13 Achievement% 12 Wizard Run 0 Options --------- Layout 1 ASCII 0 Keyboard 0 Movement Arrows Keybinds 0 Fullscreen 1 Font 32/SmallcapsGlow Map View 50x35 Zoom Use 0% Tactical HUD 0 Map Filters NONE Filters NONE Steam 1 RUN: a0a87fa3-9288-4033-8f03-25d137433b78